[Event "GER-ch Youth U16 2019"]
[Site "Willingen"]
[Date "2019.06.15"]
[Round "9.2"]
[White "Stork, Oliver"]
[Black "Dobrikov, Marco"]
[Result "1-0"]
[ECO "D71"]
[WhiteElo "2224"]
[BlackElo "2281"]
[Annotator "ChessBase"]
[PlyCount "106"]
[EventDate "2019.06.07"]
[EventType "swiss"]
[EventRounds "9"]
[EventCountry "GER"]
[SourceTitle "playchess.com"]
[Source "ChessBase"]
[SourceQuality "1"]
[TimeControl "40/5400+30:1800+30"]

1. d4 {[%emt 0:00:00]} Nf6 {[%emt 0:00:00]} 2. c4 {[%emt 0:00:00]} g6 {[%emt 0:00:00]} 3. g3 {[%emt 0:00:00]} Bg7 {[%emt 0:04:48]} 4. Bg2 {[%emt 0:00:00]} O-O {[%emt 0:05:00]} 5. Nc3 {[%emt 0:00:06]} d6 {[%emt 0:00:48]} 6. Nf3 {[%emt 0:00:50]} c6 {[%emt 0:02:41]} 7. O-O {[%emt 0:00:47]} Nbd7 {[%emt 0:02:19]} 8. b3 {[%emt 0:10:17]} a6 {[%emt 0:04:49]} 9. e4 {[%emt 0:05:46]} Qc7 {[%emt 0:02:10]} 10. Qc2 {[%emt 0:08:17]} e5 {[%emt 0:03:45]} 11. Rd1 {[%emt 0:03:57]} b5 {[%emt 0:04:23]} 12. dxe5 {[%emt 0:20:24]} dxe5 {[%emt 0:00:41]} 13. cxb5 {[%emt 0:01:31]} cxb5 {[%emt 0:00:10]} 14. Ba3 {[%emt 0:00:07]} Re8 {[%emt 0:00:28]} 15. Rac1 {[%emt 0:13:01]} Qa5 {[%emt 0:04:48]} 16. Bd6 {[%emt 0:03:01]} Bb7 {[%emt 0:00:56]} 17. a4 {[%emt 0:05:52]} Rac8 {[%emt 0:02:33]} 18. Qd2 {[%emt 0:04:47]} Qb6 {[%emt 0:03:07]} 19. Bh3 {[%emt 0:03:57]} b4 {[%emt 0:11:10]} 20. Nd5 {[%emt 0:08:05]} Bxd5 {[%emt 0:11:34]} 21. Rxc8 {[%emt 0:02:23]} Rxc8 {[%emt 0:00:17]} 22. Bxd7 {[%emt 0:00:09]} Nxe4 {[%emt 0:01:21]} 23. Qe1 {[%emt 0:03:11]} Ba8 {[%emt 0:08:56]} 24. Bxc8 {[%emt 0:02:53]} Nxd6 {[%emt 0:00:09]} 25. Qe3 {[%emt 0:00:29]} Qc6 {[%emt 0:05:48]} 26. Bh3 {[%emt 0:00:13]} Bh6 {[%emt 0:01:11]} 27. Qe2 {[%emt 0:01:41]} Bf8 {[%emt 0:12:52]} 28. Bg2 {[%emt 0:00:27]} e4 {[%emt 0:01:54]} 29. Nd4 {[%emt 0:00:52]} Qb6 {[%emt 0:03:19]} 30. Nc2 {[%emt 0:00:36]} a5 {[%emt 0:00:29]} 31. Ne3 {[%emt 0:00:09]} Qc5 {[%emt 0:01:50]} 32. Qc2 {[%emt 0:00:34]} Qxc2 {[%emt 0:00:45]} 33. Nxc2 {[%emt 0:00:03]} Kg7 {[%emt 0:00:05]} 34. Bf1 {[%emt 0:00:30]} Kf6 {[%emt 0:00:29]} 35. Ne3 {[%emt 0:00:04]} Ke5 {[%emt 0:00:56]} 36. Nc4+ {[%emt 0:00:14]} Nxc4 {[%emt 0:00:01]} 37. Bxc4 {[%emt 0:00:05]} Bd6 {[%emt 0:00:21]} 38. Bxf7 {[%emt 0:00:09]} Bc6 {[%emt 0:00:06]} 39. h4 {[%emt 0:01:38]} Bc7 {[%emt 0:00:39]} 40. Rc1 {[%emt 0:01:36]} Kd6 {[%emt 0:00:01]} 41. g4 {[%emt 0:11:03]} Bb6 {[%emt 0:00:42]} 42. Kf1 {[%emt 0:01:27]} Bd7 {[%emt 0:00:50]} 43. g5 {[%emt 0:01:27]} Bd4 {[%emt 0:02:28]} 44. Bg8 {[%emt 0:06:02]} Ke5 {[%emt 0:01:29]} 45. Rc7 {[%emt 0:02:04]} Kd6 {[%emt 0:00:05]} 46. Rb7 {[%emt 0:03:52]} Bh3+ {[%emt 0:01:44]} 47. Ke1 {[%emt 0:01:15]} Bd7 {[%emt 0:01:01]} 48. Bxh7 {[%emt 0:01:57]} Be6 {[%emt 0:00:05]} 49. Bxg6 {[%emt 0:01:45]} Bxb3 {[%emt 0:00:01]} 50. Bxe4 {[%emt 0:00:37]} Bxa4 {[%emt 0:00:04]} 51. g6 {[%emt 0:00:39]} Bb3 {[%emt 0:00:09]} 52. g7 {[%emt 0:01:42]} a4 {[%emt 0:00:09]} 53. Bh7 {[%emt 0:00:54]} Kc6 {[%emt 0:00:12] normal} 1-0

[Event "GER-ch Youth U16 2019"]
[Site "Willingen"]
[Date "2019.06.15"]
[Round "9.3"]
[White "Suvorov, Alexander"]
[Black "Fromm, Marius"]
[Result "1-0"]
[ECO "A70"]
[WhiteElo "2325"]
[BlackElo "2038"]
[Annotator "ChessBase"]
[PlyCount "86"]
[EventDate "2019.06.07"]
[EventType "swiss"]
[EventRounds "9"]
[EventCountry "GER"]
[SourceTitle "playchess.com"]
[Source "ChessBase"]
[SourceQuality "1"]
[TimeControl "40/5400+30:1800+30"]

1. d4 {[%emt 0:00:00]} Nf6 {[%emt 0:00:00]} 2. c4 {[%emt 0:00:04]} c5 {[%emt 0:00:00]} 3. d5 {[%emt 0:00:18]} e6 {[%emt 0:00:00]} 4. Nc3 {[%emt 0:00:53]} exd5 {[%emt 0:00:00]} 5. cxd5 {[%emt 0:00:38]} d6 {[%emt 0:00:01]} 6. e4 {[%emt 0:00:53]} g6 {[%emt 0:00:05]} 7. Nf3 {[%emt 0:00:22]} Bg7 {[%emt 0:00:19]} 8. h3 {[%emt 0:00:44]} O-O {[%emt 0:00:08]} 9. Bd3 {[%emt 0:00:03]} Nh5 {[%emt 0:00:19]} 10. O-O {[%emt 0:03:02]} Nd7 {[%emt 0:00:11]} 11. Bg5 {[%emt 0:02:23]} Bf6 {[%emt 0:00:15]} 12. Be3 {[%emt 0:03:13]} Re8 {[%emt 0:00:26]} 13. Qd2 {[%emt 0:02:35]} Ne5 {[%emt 0:00:36]} 14. Be2 {[%emt 0:02:11]} Nxf3+ {[%emt 0:00:19]} 15. Bxf3 {[%emt 0:00:12]} Ng7 {[%emt 0:00:10]} 16. Bf4 {[%emt 0:03:54]} Be5 {[%emt 0:01:43]} 17. Rae1 {[%emt 0:08:45]} a6 {[%emt 0:32:50]} 18. a4 {[%emt 0:04:51]} Bd7 {[%emt 0:02:25]} 19. Bxe5 {[%emt 0:09:01]} dxe5 {[%emt 0:04:32]} 20. Be2 {[%emt 0:02:52]} Qf6 {[%emt 0:04:20]} 21. a5 {[%emt 0:12:48]} Rac8 {[%emt 0:11:42]} 22. b3 {[%emt 0:04:42]} Qh4 {[%emt 0:04:35]} 23. Qe3 {[%emt 0:03:25]} f5 {[%emt 0:04:35]} 24. f4 {[%emt 0:04:28]} exf4 {[%emt 0:04:04]} 25. Qxf4 {[%emt 0:01:07]} Qxf4 26. Rxf4 {[%emt 0:00:01]} Re5 {[%emt 0:09:11]} 27. exf5 {[%emt 0:01:27]} Nxf5 {[%emt 0:00:28]} 28. Re4 {[%emt 0:03:41]} Rxe4 {[%emt 0:06:16]} 29. Nxe4 {[%emt 0:00:01]} Bb5 {[%emt 0:01:48]} 30. Bc4 {[%emt 0:01:38]} Kg7 31. d6 {[%emt 0:03:51]} Bxc4 {[%emt 0:05:51]} 32. bxc4 {[%emt 0:00:15]} Rd8 {[%emt 0:00:46]} 33. Nxc5 {[%emt 0:00:50]} Rxd6 {[%emt 0:00:03]} 34. Nxb7 {[%emt 0:00:22]} Rc6 {[%emt 0:00:31]} 35. c5 {[%emt 0:00:31]} Nd4 {[%emt 0:03:08]} 36. Rd1 {[%emt 0:06:47]} Nb5 {[%emt 0:02:50]} 37. Rd7+ {[%emt 0:00:31]} Kf6 {[%emt 0:01:04]} 38. Rxh7 {[%emt 0:02:29]} Ke5 {[%emt 0:01:49]} 39. h4 {[%emt 0:06:15]} Rc7 {[%emt 0:01:30]} 40. Rxc7 {[%emt 0:00:17]} Nxc7 {[%emt 0:00:03]} 41. Nd8 {[%emt 0:16:34]} Ne8 {[%emt 0:15:07]} 42. Kf2 {[%emt 0:06:34]} Kd5 {[%emt 0:03:18]} 43. c6 {[%emt 0:00:47]} g5 {[%emt 0:04:14] normal} 1-0

[Event "GER-ch Youth U16 2019"]
[Site "Willingen"]
[Date "2019.06.15"]
[Round "9.4"]
[White "Richter, Nils"]
[Black "Post, Hugo"]
[Result "1-0"]
[ECO "B90"]
[WhiteElo "2115"]
[BlackElo "2113"]
[Annotator "ChessBase"]
[PlyCount "79"]
[EventDate "2019.06.07"]
[EventType "swiss"]
[EventRounds "9"]
[EventCountry "GER"]
[SourceTitle "playchess.com"]
[Source "ChessBase"]
[SourceQuality "1"]
[TimeControl "40/5400+30:1800+30"]

1. e4 {[%emt 0:00:00]} c5 {[%emt 0:00:00]} 2. Nf3 {[%emt 0:00:00]} d6 {[%emt 0:00:00]} 3. d4 {[%emt 0:00:00]} cxd4 {[%emt 0:00:16]} 4. Nxd4 {[%emt 0:00:00]} Nf6 {[%emt 0:00:16]} 5. Nc3 {[%emt 0:00:04]} a6 {[%emt 0:00:29]} 6. h3 {[%emt 0:00:11]} h5 {[%emt 0:06:51]} 7. g3 {[%emt 0:00:34]} e5 {[%emt 0:03:30]} 8. Nde2 {[%emt 0:00:22]} b5 {[%emt 0:03:11]} 9. Bg2 {[%emt 0:01:05]} Bb7 {[%emt 0:03:26]} 10. O-O {[%emt 0:01:31]} Nbd7 {[%emt 0:02:44]} 11. Nd5 {[%emt 0:05:09]} Nxd5 {[%emt 0:05:18]} 12. exd5 {[%emt 0:01:29]} Qc7 {[%emt 0:08:39]} 13. Bg5 {[%emt 0:08:07]} g6 {[%emt 0:09:53]} 14. Nd4 {[%emt 0:13:08]} Bg7 {[%emt 0:10:32]} 15. Nc6 {[%emt 0:00:58]} Nf6 {[%emt 0:14:58]} 16. a4 {[%emt 0:14:32]} O-O {[%emt 0:03:17]} 17. axb5 {[%emt 0:03:10]} axb5 {[%emt 0:00:04]} 18. Qd3 {[%emt 0:00:38]} e4 {[%emt 0:06:18]} 19. Qxb5 {[%emt 0:01:52]} Nxd5 {[%emt 0:00:17]} 20. Na5 {[%emt 0:00:53]} Ba6 {[%emt 0:01:53]} 21. Qxd5 {[%emt 0:00:37]} Bxf1 {[%emt 0:00:03]} 22. Bxf1 {[%emt 0:02:23]} Bxb2 {[%emt 0:01:48]} 23. Ra2 {[%emt 0:00:44]} Be5 {[%emt 0:06:45]} 24. Nc6 {[%emt 0:04:19]} Rxa2 {[%emt 0:00:06]} 25. Ne7+ {[%emt 0:00:04]} Kh7 {[%emt 0:00:11]} 26. Qxa2 {[%emt 0:00:05]} Qd7 {[%emt 0:04:46]} 27. Nd5 {[%emt 0:01:02]} Qe6 {[%emt 0:01:14]} 28. Qc4 {[%emt 0:01:29]} Bg7 {[%emt 0:01:13]} 29. Bg2 {[%emt 0:03:36]} Re8 {[%emt 0:00:53]} 30. Qb3 {[%emt 0:01:29]} Qf5 {[%emt 0:00:31]} 31. Bf4 {[%emt 0:01:28]} Qe6 {[%emt 0:01:36]} 32. c4 {[%emt 0:01:04]} Rc8 {[%emt 0:00:49]} 33. Qb4 {[%emt 0:04:54]} Rc6 {[%emt 0:00:42]} 34. h4 {[%emt 0:02:33]} Bd4 {[%emt 0:00:45]} 35. Be3 {[%emt 0:01:22]} Bxe3 {[%emt 0:01:53]} 36. Nxe3 {[%emt 0:00:03]} Rc8 {[%emt 0:00:32]} 37. Qb7 {[%emt 0:02:19]} Re8 {[%emt 0:00:39]} 38. Nd5 {[%emt 0:01:28]} Kg7 {[%emt 0:00:06]} 39. Nc7 {[%emt 0:00:35]} Qe7 {[%emt 0:00:25]} 40. Nxe8+ {[%emt 0:00:04] normal} 1-0

[Event "GER-ch Youth U16 2019"]
[Site "Willingen"]
[Date "2019.06.15"]
[Round "9.5"]
[White "Trifan, Andrei Ioan"]
[Black "Koellner, Ruben Gideon"]
[Result "1/2-1/2"]
[ECO "B07"]
[WhiteElo "2268"]
[BlackElo "2299"]
[Annotator "ChessBase"]
[PlyCount "112"]
[EventDate "2019.06.07"]
[EventType "swiss"]
[EventRounds "9"]
[EventCountry "GER"]
[SourceTitle "playchess.com"]
[Source "ChessBase"]
[SourceQuality "1"]
[TimeControl "40/5400+30:1800+30"]

1. e4 {[%emt 0:00:00]} d6 {[%emt 0:00:00]} 2. d4 {[%emt 0:00:00]} Nf6 {[%emt 0:00:00]} 3. Nc3 {[%emt 0:00:06]} e5 {[%emt 0:00:00]} 4. dxe5 {[%emt 0:01:26]} dxe5 {[%emt 0:00:03]} 5. Qxd8+ {[%emt 0:00:08]} Kxd8 {[%emt 0:00:02]} 6. Bc4 {[%emt 0:01:02]} Ke8 {[%emt 0:01:18]} 7. Nf3 {[%emt 0:02:09]} Bd6 {[%emt 0:00:09]} 8. Be3 {[%emt 0:02:00]} a6 {[%emt 0:03:27]} 9. O-O-O {[%emt 0:01:47]} b5 {[%emt 0:16:07]} 10. Bd5 {[%emt 0:00:58]} Nxd5 {[%emt 0:00:10]} 11. Nxd5 {[%emt 0:00:15]} Nd7 {[%emt 0:00:47]} 12. c4 {[%emt 0:07:53]} c6 {[%emt 0:10:55]} 13. Nb6 {[%emt 0:19:32]} Nxb6 {[%emt 0:00:12]} 14. Bxb6 {[%emt 0:02:11]} Ke7 {[%emt 0:09:56]} 15. c5 {[%emt 0:04:05]} Bb8 {[%emt 0:00:05]} 16. b4 {[%emt 0:04:29]} Bg4 {[%emt 0:09:56]} 17. h3 {[%emt 0:06:51]} Be6 {[%emt 0:10:51]} 18. Ng5 {[%emt 0:04:41]} Bc4 {[%emt 0:03:57]} 19. Rd2 {[%emt 0:05:51]} f6 {[%emt 0:00:11]} 20. Nf3 {[%emt 0:01:18]} Ba7 {[%emt 0:05:55]} 21. Rhd1 {[%emt 0:02:14]} Be6 {[%emt 0:00:07]} 22. Ba5 {[%emt 0:00:58]} Rac8 {[%emt 0:01:05]} 23. Rd3 {[%emt 0:06:57]} g6 {[%emt 0:16:13]} 24. Nd2 {[%emt 0:11:56]} f5 {[%emt 0:02:56]} 25. f3 {[%emt 0:00:37]} Rhf8 {[%emt 0:00:52]} 26. Re1 {[%emt 0:03:40]} Kf6 {[%emt 0:01:41]} 27. Nb3 {[%emt 0:00:49]} Bb8 {[%emt 0:01:02]} 28. Bb6 {[%emt 0:01:40]} fxe4 {[%emt 0:00:46]} 29. fxe4 {[%emt 0:00:14]} Ke7 {[%emt 0:01:48]} 30. Na5 {[%emt 0:01:40]} Bxa2 {[%emt 0:01:12]} 31. Red1 {[%emt 0:01:51]} Be6 {[%emt 0:00:05]} 32. Rd8 {[%emt 0:01:02]} Rfxd8 {[%emt 0:00:51]} 33. Rxd8 {[%emt 0:00:59]} Rxd8 {[%emt 0:00:20]} 34. Nxc6+ {[%emt 0:00:05]} Kd7 {[%emt 0:00:17]} 35. Nxd8 {[%emt 0:00:28]} Bc4 {[%emt 0:00:12]} 36. c6+ {[%emt 0:01:42]} Kc8 {[%emt 0:00:04]} 37. Nb7 {[%emt 0:00:46]} Bf1 {[%emt 0:02:29]} 38. g3 {[%emt 0:01:13]} Bxh3 {[%emt 0:00:40]} 39. Kd2 {[%emt 0:00:15]} Bc7 {[%emt 0:00:44]} 40. Bc5 {[%emt 0:00:24]} Bb8 {[%emt 0:01:37]} 41. Ke3 {[%emt 0:05:07]} Be6 {[%emt 0:06:37]} 42. Kf3 {[%emt 0:00:17]} h5 {[%emt 0:05:11]} 43. Ke3 {[%emt 0:03:02]} g5 {[%emt 0:04:21]} 44. Kf3 {[%emt 0:00:04]} Bg4+ {[%emt 0:01:06]} 45. Ke3 {[%emt 0:01:20]} h4 {[%emt 0:01:28]} 46. gxh4 {[%emt 0:00:28]} gxh4 {[%emt 0:00:08]} 47. Kf2 {[%emt 0:00:38]} Bh5 {[%emt 0:01:37]} 48. Kg2 {[%emt 0:00:54]} Bg6 {[%emt 0:05:47]} 49. Kh3 {[%emt 0:01:07]} Bxe4 {[%emt 0:00:17]} 50. Nd6+ {[%emt 0:00:04]} Bxd6 {[%emt 0:00:05]} 51. Bxd6 {[%emt 0:00:04]} Bf5+ {[%emt 0:01:17]} 52. Kxh4 {[%emt 0:00:26]} e4 {[%emt 0:00:05]} 53. Kg5 {[%emt 0:00:29]} Be6 {[%emt 0:00:13]} 54. Kf4 {[%emt 0:00:27]} Bd5 {[%emt 0:00:23]} 55. c7 {[%emt 0:00:21]} Bb7 {[%emt 0:00:49]} 56. Ke3 {[%emt 0:00:18]} Bc6 {[%emt 0:00:18] normal Kxe4} 1/2-1/2

[Event "GER-ch Youth U16 2019"]
[Site "Willingen"]
[Date "2019.06.15"]
[Round "9.6"]
[White "Boder, Jan"]
[Black "Nguyen, Alex Dac-Vuong"]
[Result "0-1"]
[ECO "A15"]
[WhiteElo "2123"]
[BlackElo "2287"]
[Annotator "ChessBase"]
[PlyCount "105"]
[EventDate "2019.06.07"]
[EventType "swiss"]
[EventRounds "9"]
[EventCountry "GER"]
[SourceTitle "playchess.com"]
[Source "ChessBase"]
[SourceQuality "1"]
[TimeControl "40/5400+30:1800+30"]

1. c4 {[%emt 0:00:00]} Nf6 {[%emt 0:00:00]} 2. Nf3 {[%emt 0:00:00]} c5 {[%emt 0:00:05]} 3. Nc3 {[%emt 0:00:00]} e6 {[%emt 0:00:13]} 4. e4 {[%emt 0:01:31]} Nc6 {[%emt 0:00:20]} 5. d4 {[%emt 0:01:37]} cxd4 {[%emt 0:00:08]} 6. Nxd4 {[%emt 0:00:04]} Bb4 {[%emt 0:00:55]} 7. Nxc6 {[%emt 0:03:47]} dxc6 {[%emt 0:01:26]} 8. Qxd8+ {[%emt 0:01:12]} Kxd8 {[%emt 0:00:06]} 9. Bd3 {[%emt 0:00:08]} e5 {[%emt 0:02:56]} 10. Bd2 {[%emt 0:01:09]} Ke7 {[%emt 0:05:31]} 11. f3 {[%emt 0:03:17]} Rd8 {[%emt 0:03:50]} 12. Ke2 {[%emt 0:00:09]} Bc5 {[%emt 0:12:30]} 13. Rab1 {[%emt 0:01:32]} Bd4 {[%emt 0:01:29]} 14. Na4 {[%emt 0:09:14]} Nd7 {[%emt 0:09:18]} 15. Bb4+ {[%emt 0:05:57]} Ke8 {[%emt 0:03:22]} 16. Rhf1 {[%emt 0:09:20]} f6 {[%emt 0:00:37]} 17. Rfc1 {[%emt 0:01:04]} b6 {[%emt 0:13:11]} 18. Bc3 {[%emt 0:01:42]} Nf8 {[%emt 0:03:52]} 19. Bd2 {[%emt 0:06:27]} Be6 {[%emt 0:06:40]} 20. Be3 {[%emt 0:06:47]} Bf7 {[%emt 0:00:10]} 21. Bxd4 {[%emt 0:01:28]} Rxd4 {[%emt 0:00:13]} 22. b3 {[%emt 0:00:19]} Ne6 {[%emt 0:00:29]} 23. g3 {[%emt 0:01:00]} Rad8 {[%emt 0:01:06]} 24. Rd1 {[%emt 0:00:27]} Bh5 {[%emt 0:00:13]} 25. Nb2 {[%emt 0:00:50]} Ng5 {[%emt 0:00:22]} 26. g4 {[%emt 0:00:29]} Bf7 {[%emt 0:00:43]} 27. Ke3 {[%emt 0:02:26]} h5 {[%emt 0:03:09]} 28. h4 {[%emt 0:02:58]} Ne6 {[%emt 0:00:12]} 29. Na4 {[%emt 0:06:51]} Nf4 {[%emt 0:00:30]} 30. Be2 {[%emt 0:05:14]} hxg4 {[%emt 0:02:30]} 31. fxg4 {[%emt 0:01:54]} Ng2+ {[%emt 0:00:20]} 32. Kf2 {[%emt 0:00:57]} Nxh4 {[%emt 0:00:09]} 33. Rxd4 {[%emt 0:00:58]} Rxd4 {[%emt 0:00:13]} 34. Rd1 {[%emt 0:00:29]} Rxe4 {[%emt 0:01:41]} 35. c5 {[%emt 0:01:12]} b5 {[%emt 0:01:41]} 36. Nc3 {[%emt 0:01:20]} Rd4 {[%emt 0:00:35]} 37. Rxd4 {[%emt 0:00:44]} exd4 {[%emt 0:00:05]} 38. Ne4 {[%emt 0:00:02]} Kd7 {[%emt 0:01:43]} 39. Nd6 {[%emt 0:00:55]} Be6 {[%emt 0:00:25]} 40. Bd3 {[%emt 0:02:09]} g5 {[%emt 0:00:41]} 41. Kg3 {[%emt 0:30:42]} Ke7 {[%emt 0:31:57]} 42. Be4 {[%emt 0:04:08]} Bd7 {[%emt 0:01:33]} 43. Kf2 {[%emt 0:08:42]} Ke6 {[%emt 0:04:04]} 44. Kg3 {[%emt 0:00:42]} Ke5 {[%emt 0:01:35]} 45. Bd3 {[%emt 0:01:35]} f5 {[%emt 0:00:48]} 46. Nf7+ {[%emt 0:01:10]} Kf6 {[%emt 0:00:10]} 47. Nd8 {[%emt 0:00:07]} f4+ {[%emt 0:01:03]} 48. Kf2 {[%emt 0:00:06]} Ke7 {[%emt 0:01:09]} 49. Nb7 {[%emt 0:00:09]} Bxg4 {[%emt 0:00:19]} 50. Na5 {[%emt 0:00:10]} Bd7 {[%emt 0:00:34]} 51. Be4 {[%emt 0:00:07]} g4 {[%emt 0:00:29]} 52. Bxc6 {[%emt 0:00:18]} g3+ {[%emt 0:00:05]} 53. Kg1 {[%emt 0:00:19] normal} 0-1

[Event "GER-ch Youth U16 2019"]
[Site "Willingen"]
[Date "2019.06.15"]
[Round "9.7"]
[White "Hommel, Niclas"]
[Black "Kopylov, Daniel"]
[Result "1/2-1/2"]
[ECO "B63"]
[WhiteElo "1953"]
[BlackElo "2263"]
[Annotator "NA"]
[PlyCount "132"]
[EventDate "2019.06.07"]
[EventType "swiss"]
[EventRounds "9"]
[EventCountry "GER"]
[SourceTitle "playchess.com"]
[Source "ChessBase"]
[SourceQuality "1"]
[TimeControl "40/5400+30:1800+30"]

1. e4 {[%emt 0:00:00]} c5 {[%emt 0:00:00]} 2. Nf3 {[%emt 0:00:00]} d6 {[%emt 0:00:00]} 3. d4 {[%emt 0:00:00]} cxd4 {[%emt 0:00:00]} 4. Nxd4 {[%emt 0:00:00]} Nf6 {[%emt 0:00:04]} 5. Nc3 {[%emt 0:00:00]} Nc6 {[%emt 0:00:07]} 6. Bg5 {[%emt 0:00:00]} e6 {[%emt 0:00:28]} 7. Qd2 {[%emt 0:00:03]} Be7 {[%emt 0:00:30]} 8. O-O-O {[%emt 0:00:04]} Nxd4 {[%emt 0:00:23]} 9. Qxd4 {[%emt 0:00:08]} O-O {[%emt 0:00:11]} 10. h4 {[%emt 0:00:46]} Qa5 {[%emt 0:01:59]} 11. Kb1 {[%emt 0:00:44]} Rd8 {[%emt 0:05:19]} 12. Qd2 {[%emt 0:02:11]} Bd7 {[%emt 0:14:22]} 13. f3 {[%emt 0:08:14]} Qc7 {[%emt 0:01:59]} 14. g4 {[%emt 0:05:37]} Bc6 {[%emt 0:24:55]} 15. Bd3 {[%emt 0:08:23]} d5 {[%emt 0:05:53]} 16. e5 {[%emt 0:02:26]} Ne4 {[%emt 0:05:25]} 17. fxe4 {[%emt 0:19:58]} dxe4 {[%emt 0:00:32]} 18. Rh3 {[%emt 0:01:01]} exd3 {[%emt 0:06:40]} 19. Rxd3 {[%emt 0:00:08]} Rxd3 {[%emt 0:01:14]} 20. Qxd3 {[%emt 0:00:05]} Bxg5 {[%emt 0:00:32]} 21. hxg5 {[%emt 0:00:05]} Qe7 {[%emt 0:03:16]} 22. Ne4 {[%emt 0:03:05]} Rf8 {[%emt 0:08:06]} 23. Rh1 {[%emt 0:04:10]} Bxe4 {[%emt 0:06:08]} 24. Qxe4 {[%emt 0:00:05]} g6 {[%emt 0:00:09]} 25. Qe3 {[%emt 0:08:18]} Rd8 {[%emt 0:00:44]} 26. Qh3 {[%emt 0:00:06]} Qxg5 {[%emt 0:00:56]} 27. Qxh7+ {[%emt 0:00:06]} Kf8 {[%emt 0:00:04]} 28. Rf1 {[%emt 0:00:09]} Rd7 {[%emt 0:02:23]} 29. Qh8+ {[%emt 0:15:15]} Ke7 {[%emt 0:00:05]} 30. Qg8 {[%emt 0:00:24]} Qf4 {[%emt 0:01:17]} 31. Rh1 {[%emt 0:06:48]} Qh2 {[%emt 0:05:14]} 32. Rf1 {[%emt 0:02:30]} Qf4 {[%emt 0:00:01]} 33. Rh1 {[%emt 0:00:07]} Qxg4 {[%emt 0:03:01]} 34. Rc1 {[%emt 0:01:21]} Rd8 {[%emt 0:03:51]} 35. Qg7 {[%emt 0:00:25]} Qh4 {[%emt 0:00:15]} 36. Rf1 {[%emt 0:01:16]} Qf4 {[%emt 0:00:30]} 37. Re1 {[%emt 0:01:10]} Rd2 {[%emt 0:00:42]} 38. Qh8 {[%emt 0:01:17]} Qf2 {[%emt 0:01:10]} 39. Rh1 {[%emt 0:04:45]} Rd8 {[%emt 0:00:23]} 40. Qg7 {[%emt 0:00:17]} Rc8 {[%emt 0:00:38]} 41. Rc1 {[%emt 0:30:35]} Qf5 {[%emt 0:05:32]} 42. a3 {[%emt 0:00:00]} b5 {[%emt 0:06:57]} 43. Ka2 {[%emt 0:00:00]} a5 {[%emt 0:02:49]} 44. Rh1 {[%emt 0:00:00]} b4 {[%emt 0:03:41]} 45. axb4 {[%emt 0:00:00]} axb4 {[%emt 0:00:37]} 46. Rh8 {[%emt 0:00:00]} Rxh8 {[%emt 0:01:47]} 47. Qxh8 {[%emt 0:00:00]} Qxc2 {[%emt 0:00:16]} 48. Qh4+ {[%emt 0:00:00]} Ke8 {[%emt 0:02:50]} 49. Qxb4 {[%emt 0:00:00]} Qc6 {[%emt 0:00:45]} 50. Qb8+ {[%emt 0:00:00]} Kd7 {[%emt 0:01:11]} 51. Qf8 {[%emt 0:00:00]} Qa6+ {[%emt 0:00:53]} 52. Kb1 {[%emt 0:00:00]} Qf1+ {[%emt 0:00:59]} 53. Ka2 {[%emt 0:00:00]} Qf3 {[%emt 0:00:25]} 54. Qd6+ {[%emt 0:00:00]} Kc8 {[%emt 0:00:07]} 55. Qf8+ {[%emt 0:00:00]} Kb7 {[%emt 0:00:10]} 56. Qe7+ {[%emt 0:00:00]} Kc6 {[%emt 0:01:21]} 57. Qd6+ {[%emt 0:00:00]} Kb5 {[%emt 0:01:00]} 58. b3 {[%emt 0:00:00]} Qg2+ {[%emt 0:02:04]} 59. Ka3 {[%emt 0:00:00]} Qa8+ {[%emt 0:00:16]} 60. Kb2 {[%emt 0:00:00]} Qd5 {[%emt 0:01:31]} 61. Qb8+ {[%emt 0:00:00]} Ka6 {[%emt 0:00:59]} 62. Qc8+ {[%emt 0:00:27]} Kb6 {[%emt 0:00:10]} 63. Qb8+ {[%emt 0:00:12]} Ka6 {[%emt 0:00:10]} 64. Qc8+ {[%emt 0:00:05]} Qb7 {[%emt 0:00:41]} 65. Qc4+ {[%emt 0:00:12]} Ka7 {[%emt 0:00:33]} 66. Qc5+ {[%emt 0:00:24]} Ka8 {[%emt 0:00:04] normal} 1/2-1/2

[Event "GER-ch Youth U16 2019"]
[Site "Willingen"]
[Date "2019.06.15"]
[Round "9.8"]
[White "Woelk, Tom-Frederic"]
[Black "Huber, Benedikt"]
[Result "1-0"]
[ECO "E20"]
[WhiteElo "2239"]
[BlackElo "2051"]
[Annotator "ChessBase"]
[PlyCount "73"]
[EventDate "2019.06.07"]
[EventType "swiss"]
[EventRounds "9"]
[EventCountry "GER"]
[SourceTitle "playchess.com"]
[Source "ChessBase"]
[SourceQuality "1"]
[TimeControl "40/5400+30:1800+30"]

1. d4 {[%emt 0:00:00]} Nf6 {[%emt 0:00:00]} 2. c4 {[%emt 0:00:00]} e6 {[%emt 0:00:00]} 3. Nc3 {[%emt 0:00:00]} Bb4 {[%emt 0:00:42]} 4. f3 {[%emt 0:00:09]} d5 {[%emt 0:01:17]} 5. a3 {[%emt 0:00:37]} Bxc3+ {[%emt 0:00:54]} 6. bxc3 {[%emt 0:00:08]} c5 {[%emt 0:01:19]} 7. e3 {[%emt 0:00:06]} O-O {[%emt 0:02:19]} 8. cxd5 {[%emt 0:00:59]} exd5 {[%emt 0:03:16]} 9. Bd3 {[%emt 0:00:32]} b6 {[%emt 0:03:20]} 10. Ne2 {[%emt 0:00:19]} Ba6 {[%emt 0:02:06]} 11. Bxa6 {[%emt 0:00:49]} Nxa6 {[%emt 0:00:08]} 12. O-O {[%emt 0:00:05]} Nb8 {[%emt 0:06:15]} 13. Ng3 {[%emt 0:00:13]} Nc6 {[%emt 0:00:38]} 14. Qd3 {[%emt 0:02:09]} Re8 {[%emt 0:04:11]} 15. Bb2 {[%emt 0:00:12]} c4 {[%emt 0:07:27]} 16. Qe2 {[%emt 0:02:54]} h5 {[%emt 0:01:26]} 17. Rae1 {[%emt 0:00:43]} Ne7 {[%emt 0:03:13]} 18. Bc1 {[%emt 0:08:47]} h4 {[%emt 0:07:03]} 19. Nh1 {[%emt 0:00:09]} Ng6 {[%emt 0:03:31]} 20. Nf2 {[%emt 0:05:23]} Nh5 {[%emt 0:06:04]} 21. Qc2 {[%emt 0:10:40]} Qf6 {[%emt 0:08:11]} 22. Nh3 {[%emt 0:04:08]} Nf8 {[%emt 0:05:03]} 23. e4 {[%emt 0:00:44]} Qg6 {[%emt 0:00:07]} 24. Qf2 {[%emt 0:00:30]} dxe4 {[%emt 0:01:06]} 25. fxe4 {[%emt 0:00:15]} Nf6 {[%emt 0:00:14]} 26. Nf4 {[%emt 0:04:02]} Qh7 {[%emt 0:08:09]} 27. e5 {[%emt 0:00:27]} Ne4 {[%emt 0:00:48]} 28. Qf3 {[%emt 0:01:05]} Ng5 {[%emt 0:00:51]} 29. Qg4 {[%emt 0:00:25]} Nge6 {[%emt 0:02:58]} 30. Nh3 {[%emt 0:04:43]} Rac8 {[%emt 0:07:39]} 31. d5 {[%emt 0:01:26]} Nc5 {[%emt 0:00:22]} 32. Re3 {[%emt 0:19:40]} Nfd7 {[%emt 0:01:01]} 33. e6 {[%emt 0:01:05]} fxe6 {[%emt 0:00:27]} 34. dxe6 {[%emt 0:00:05]} Nb8 {[%emt 0:02:36]} 35. Qxc4 {[%emt 0:00:49]} Re7 {[%emt 0:00:48]} 36. Nf4 {[%emt 0:03:31]} Rce8 {[%emt 0:00:47]} 37. Nd5 {[%emt 0:00:33] normal} 1-0